[Event "Elitserien 2019/2020, round 1-3"]
[Site "Uppsala University, Gamla torget, Uppsala, Sweden"]
[Date "2019.10.20"]
[Round "3.23"]
[White "Vernersson, Per"]
[Black "Hedman, Erik"]
[Result "0-1"]
[TimeControl "90 minutes for 40 moves + 30 minutes for the rest of the game + 30 seconds per move from move one."]
[BlackTitle "IM"]
[WhiteFideId "1700863"]
[BlackFideId "1702351"]
[WhiteElo "2275"]
[BlackElo "2371"]

1. Nf3 {[%clk 00:54:26]} c5 {[%clk 01:02:14]} 2. g3 {[%clk 00:54:26]} Nc6
{[%clk 01:02:14]} 3. Bg2 {[%clk 00:54:26]} Nf6 {[%clk 01:02:14]} 4. O-O {[%clk
00:54:26]} d6 {[%clk 01:02:14]} 5. c4 {[%clk 00:54:26]} Bd7 {[%clk 01:02:14]} 6.
Nc3 {[%clk 00:54:26]} Qc8 {[%clk 01:02:14]} 7. d3 {[%clk 00:54:26]} Bh3 {[%clk
01:02:14]} 8. Bg5 {[%clk 00:54:26]} Bxg2 {[%clk 01:02:14]} 9. Kxg2 {[%clk
00:54:26]} Nd7 {[%emt 00:00:25]} 10. Rb1 g6 {[%clk 01:02:14]} {[%emt 00:03:52]}
11. a3 {[%clk 00:50:29]} {[%emt 00:04:27]} Bg7 {[%clk 01:01:50]} {[%emt
00:00:53]} 12. Qc1 {[%clk 00:50:13]} {[%emt 00:00:47]} h6 {[%clk 00:56:56]}
{[%emt 00:05:25]} 13. Bd2 {[%clk 00:49:24]} {[%emt 00:01:19]} Nd4 {[%clk
00:52:22]} {[%emt 00:05:03]} 14. Nxd4 {[%clk 00:46:01]} {[%emt 00:03:53]} cxd4
{[%clk 00:51:24]} {[%emt 00:01:29]} 15. Nd5 {[%clk 00:45:52]} {[%emt 00:00:39]}
g5 {[%clk 00:46:08]} {[%emt 00:05:46]} 16. f4 {[%clk 00:38:55]} {[%emt
00:07:26]} e6 {[%clk 00:31:14]} {[%emt 00:15:24]} 17. Nb4 {[%clk 00:39:12]}
{[%emt 00:00:13]} f5 {[%clk 00:17:16]} {[%emt 00:14:28]} 18. fxg5 {[%clk
00:37:02]} {[%emt 00:02:40]} hxg5 {[%clk 00:17:41]} {[%emt 00:00:05]} 19. Bxg5
{[%clk 00:37:20]} {[%emt 00:00:11]} Ne5 {[%clk 00:17:26]} {[%emt 00:00:45]} 20.
Qd1 {[%clk 00:34:13]} {[%emt 00:03:37]} b5 {[%clk 00:12:00]} {[%emt 00:05:56]}
21. cxb5 {[%clk 00:31:50]} {[%emt 00:02:54]} Qb7+ {[%clk 00:12:21]} {[%emt
00:00:10]} 22. Nc6 {[%clk 00:31:41]} {[%emt 00:00:38]} Ng4 {[%clk 00:12:24]}
{[%emt 00:00:27]} 23. h3 {[%clk 00:29:17]} {[%emt 00:02:54]} Qxb5 {[%clk
00:12:23]} {[%emt 00:00:31]} 24. Nxd4 {[%clk 00:24:48]} {[%emt 00:04:59]} Bxd4
{[%clk 00:10:38]} {[%emt 00:02:15]} 25. hxg4 {[%clk 00:25:13]} {[%emt
00:00:05]} Rg8 {[%clk 00:06:49]} {[%emt 00:04:20]} 26. Bh4 {[%clk 00:22:53]}
{[%emt 00:02:49]} Rxg4 {[%clk 00:03:48]} {[%emt 00:03:31]} 27. b4 {[%clk
00:18:57]} {[%emt 00:04:25]} Kd7 {[%clk 00:04:04]} {[%emt 00:00:16]} 28. a4
{[%clk 00:18:15]} {[%emt 00:01:11]} Qb7+ {[%clk 00:04:02]} {[%emt 00:00:32]} 29.
Kh3 {[%clk 00:15:54]} {[%emt 00:02:51]} Rh8 {[%clk 00:03:38]} {[%emt 00:00:54]}
30. e4 {[%clk 00:13:25]} {[%emt 00:03:00]} Bf6 {[%clk 00:03:14]} {[%emt
00:00:53]} 31. exf5 {[%clk 00:13:40]} {[%emt 00:00:15]} Rhxh4+ {[%clk
00:03:29]} {[%emt 00:00:15]} {clock times up to move 10 are wrong due to
technical problems} 0-1

[Event "Elitserien 2019/2020, round 1-3"]
[Site "Uppsala University, Gamla torget, Uppsala, Sweden"]
[Date "2019.10.20"]
[Round "3.24"]
[White "Berovski, Krum"]
[Black "Malesevic, Nedeljko"]
[Result "1/2-1/2"]
[TimeControl "90 minutes for 40 moves + 30 minutes for the rest of the game + 30 seconds per move from move one."]
[BlackTitle "FM"]
[WhiteFideId "2902931"]
[BlackFideId "1703447"]
[WhiteElo "2349"]
[BlackElo "2251"]

1. d4 {[%clk 01:30:55]} {[%emt 00:00:03]} d5 {[%clk 01:30:50]} {[%emt
00:00:10]} 2. c4 {[%clk 01:31:18]} {[%emt 00:00:08]} e6 {[%clk 01:31:10]}
{[%emt 00:00:09]} 3. Nc3 {[%clk 01:31:41]} {[%emt 00:00:08]} Nf6 {[%clk
01:31:16]} {[%emt 00:00:22]} 4. cxd5 {[%clk 01:31:59]} {[%emt 00:00:14]} exd5
{[%clk 01:31:40]} {[%emt 00:00:06]} 5. Bg5 {[%clk 01:32:21]} {[%emt 00:00:08]}
Be7 {[%clk 01:31:31]} {[%emt 00:00:38]} 6. e3 {[%clk 01:32:32]} {[%emt
00:00:19]} c6 {[%clk 01:31:38]} {[%emt 00:00:22]} 7. Qc2 {[%clk 01:32:45]}
{[%emt 00:00:17]} Nbd7 {[%clk 01:31:37]} {[%emt 00:00:31]} 8. Bd3 {[%clk
01:32:55]} {[%emt 00:00:20]} Nf8 {[%clk 01:31:36]} {[%emt 00:00:31]} 9. Nge2
{[%clk 01:31:47]} {[%emt 00:01:38]} g6 {[%clk 01:31:49]} {[%emt 00:00:17]} 10.
O-O {[%clk 01:31:51]} {[%emt 00:00:25]} Ne6 {[%clk 01:32:02]} {[%emt 00:00:17]}
11. Bh4 {[%clk 01:32:15]} {[%emt 00:00:06]} O-O {[%clk 01:30:07]} {[%emt
00:02:15]} 12. a3 {[%clk 01:22:36]} {[%emt 00:10:21]} Ng7 {[%clk 01:27:41]}
{[%emt 00:02:54]} 13. f3 {[%clk 01:22:01]} {[%emt 00:01:06]} Nf5 {[%clk
01:22:59]} {[%emt 00:05:12]} 14. Bf2 {[%clk 01:22:18]} {[%emt 00:00:14]} c5
{[%clk 01:17:09]} {[%emt 00:06:20]} 15. Bxf5 {[%clk 01:04:14]} {[%emt
00:18:35]} Bxf5 {[%clk 01:15:24]} {[%emt 00:02:14]} 16. e4 {[%clk 01:04:23]}
{[%emt 00:00:21]} dxe4 {[%clk 01:07:02]} {[%emt 00:08:52]} 17. fxe4 {[%clk
01:04:31]} {[%emt 00:00:22]} cxd4 {[%clk 01:06:51]} {[%emt 00:00:41]} 18. Bxd4
{[%clk 01:04:27]} {[%emt 00:00:34]} Be6 {[%clk 00:48:06]} {[%emt 00:19:15]} 19.
Rad1 {[%clk 01:03:50]} {[%emt 00:01:07]} Nd7 {[%clk 00:42:42]} {[%emt
00:05:54]} 20. Nf4 {[%clk 00:54:44]} {[%emt 00:09:36]} Rc8 {[%clk 00:24:45]}
{[%emt 00:18:27]} 21. Qf2 {[%clk 00:37:15]} {[%emt 00:17:59]} Bc4 {[%clk
00:19:07]} {[%emt 00:06:09]} 22. Rfe1 {[%clk 00:36:36]} {[%emt 00:01:09]} Bb3
{[%clk 00:17:04]} {[%emt 00:02:33]} 23. Rd2 {[%clk 00:36:39]} {[%emt 00:00:27]}
b6 {[%clk 00:16:44]} {[%emt 00:00:50]} 24. Nfd5 {[%clk 00:33:09]} {[%emt
00:03:59]} Bh4 {[%clk 00:14:39]} {[%emt 00:02:35]} 25. g3 {[%clk 00:32:32]}
{[%emt 00:01:07]} Bg5 {[%clk 00:15:00]} {[%emt 00:00:08]} 26. Rd3 {[%clk
00:32:12]} {[%emt 00:00:52]} Bc4 {[%clk 00:12:57]} {[%emt 00:02:32]} 27. Rf3
{[%clk 00:32:29]} {[%emt 00:00:13]} Rc6 {[%clk 00:12:13]} {[%emt 00:01:13]} 28.
h4 {[%clk 00:32:04]} {[%emt 00:00:55]} Bh6 {[%clk 00:10:06]} {[%emt 00:02:37]}
29. g4 {[%clk 00:27:01]} {[%emt 00:05:33]} f6 {[%clk 00:08:06]} {[%emt
00:02:30]} 30. Rd1 {[%clk 00:24:46]} {[%emt 00:02:45]} Bg7 {[%clk 00:05:17]}
{[%emt 00:03:19]} 31. Qg3 {[%clk 00:21:37]} {[%emt 00:03:39]} Qe8 {[%clk
00:03:27]} {[%emt 00:02:19]} 32. Rd2 {[%clk 00:20:57]} {[%emt 00:01:13]} Ne5
{[%clk 00:03:19]} {[%emt 00:00:38]} 33. Bxe5 {[%clk 00:21:11]} {[%emt
00:00:15]} fxe5 {[%clk 00:03:31]} {[%emt 00:00:18]} 34. Rdf2 {[%clk 00:19:19]}
{[%emt 00:02:22]} Rxf3 {[%clk 00:03:49]} {[%emt 00:00:12]} 35. Qxf3 {[%clk
00:19:36]} {[%emt 00:00:13]} h6 {[%clk 00:02:38]} {[%emt 00:01:42]} 36. g5
{[%clk 00:18:26]} {[%emt 00:01:40]} Bxd5 {[%clk 00:01:40]} {[%emt 00:01:28]} 37.
exd5 {[%clk 00:18:02]} {[%emt 00:00:54]} Rc4 {[%clk 00:01:51]} {[%emt
00:00:19]} 38. Ne4 {[%clk 00:18:20]} {[%emt 00:00:12]} h5 {[%clk 00:01:41]}
{[%emt 00:00:40]} 39. d6 {[%clk 00:04:55]} {[%emt 00:13:55]} Qe6 {[%clk
00:01:13]} {[%emt 00:00:58]} 40. Kg2 {[%clk 00:03:06]} {[%emt 00:02:18]} Rd4
{[%clk 00:00:57]} {[%emt 00:00:46]} 41. Re2 {[%clk 00:28:44]} {[%emt 00:09:09]}
1/2-1/2

[Event "Elitserien 2019/2020, round 1-3"]
[Site "Uppsala University, Gamla torget, Uppsala, Sweden"]
[Date "2019.10.20"]
[Round "3.25"]
[White "Johansson, Linus"]
[Black "Urkedal, Frode Olav Olsen"]
[Result "1-0"]
[TimeControl "90 minutes for 40 moves + 30 minutes for the rest of the game + 30 seconds per move from move one."]
[WhiteTitle "IM"]
[BlackTitle "GM"]
[WhiteFideId "1711113"]
[BlackFideId "1506102"]
[WhiteElo "2467"]
[BlackElo "2550"]

1. Nf3 {[%clk 01:30:57]} {[%emt 00:00:02]} Nf6 {[%clk 01:30:24]} {[%emt
00:00:28]} 2. c4 {[%clk 01:31:24]} {[%emt 00:00:12]} e6 {[%clk 01:30:44]}
{[%emt 00:00:11]} 3. g3 {[%clk 01:31:49]} {[%emt 00:00:05]} d5 {[%clk
01:31:03]} {[%emt 00:00:10]} 4. Bg2 {[%clk 01:32:14]} {[%emt 00:00:05]} Be7
{[%clk 01:31:03]} {[%emt 00:00:30]} 5. O-O {[%clk 01:32:37]} {[%emt 00:00:07]}
O-O {[%clk 01:31:26]} {[%emt 00:00:07]} 6. b3 {[%clk 01:33:00]} {[%emt
00:00:07]} d4 {[%clk 01:31:49]} {[%emt 00:00:07]} 7. e3 {[%clk 01:31:54]}
{[%emt 00:01:36]} c5 {[%clk 01:32:15]} {[%emt 00:00:04]} 8. exd4 {[%clk
01:31:32]} {[%emt 00:00:52]} cxd4 {[%clk 01:32:41]} {[%emt 00:00:04]} 9. d3
{[%clk 01:31:49]} {[%emt 00:00:13]} Nc6 {[%clk 01:33:05]} {[%emt 00:00:06]} 10.
a3 {[%clk 01:28:38]} {[%emt 00:03:41]} a5 {[%clk 01:32:05]} {[%emt 00:01:29]}
11. Bg5 {[%clk 01:29:01]} {[%emt 00:00:07]} h6 {[%clk 01:31:33]} {[%emt
00:01:03]} 12. Bxf6 {[%clk 01:29:26]} {[%emt 00:00:06]} Bxf6 {[%clk 01:31:58]}
{[%emt 00:00:04]} 13. Nbd2 {[%clk 01:29:37]} {[%emt 00:00:19]} Be7 {[%clk
01:28:58]} {[%emt 00:03:29]} 14. Qc2 {[%clk 01:24:44]} {[%emt 00:05:23]} Qc7
{[%clk 01:25:19]} {[%emt 00:04:10]} 15. c5 {[%clk 01:19:26]} {[%emt 00:05:49]}
e5 {[%clk 01:21:38]} {[%emt 00:04:11]} 16. Rfe1 {[%clk 01:17:37]} {[%emt
00:02:19]} Be6 {[%clk 01:21:23]} {[%emt 00:00:46]} 17. Rac1 {[%clk 01:09:14]}
{[%emt 00:08:52]} Rac8 {[%clk 01:16:33]} {[%emt 00:05:20]} 18. Qb1 {[%clk
01:02:57]} {[%emt 00:06:48]} b6 {[%clk 01:11:12]} {[%emt 00:05:51]} 19. cxb6
{[%clk 00:53:01]} {[%emt 00:10:26]} Qxb6 {[%clk 01:11:35]} {[%emt 00:00:07]} 20.
Nxe5 {[%clk 00:52:47]} {[%emt 00:00:44]} Nxe5 {[%clk 01:11:35]} {[%emt
00:00:30]} 21. Rxc8 {[%clk 00:53:06]} {[%emt 00:00:12]} Rxc8 {[%clk 01:11:48]}
{[%emt 00:00:16]} 22. Rxe5 {[%clk 00:53:31]} {[%emt 00:00:06]} Bxa3 {[%clk
01:10:45]} {[%emt 00:01:32]} 23. Nc4 {[%clk 00:52:00]} {[%emt 00:02:01]} Qb4
{[%clk 00:44:15]} {[%emt 00:27:00]} 24. Qd1 {[%clk 00:49:25]} {[%emt 00:03:06]}
Rc5 {[%clk 00:27:28]} {[%emt 00:17:17]} 25. Rxe6 {[%clk 00:34:23]} {[%emt
00:15:32]} fxe6 {[%clk 00:27:45]} {[%emt 00:00:12]} 26. Qe2 {[%clk 00:34:46]}
{[%emt 00:00:08]} e5 {[%clk 00:19:51]} {[%emt 00:08:24]} 27. Be4 {[%clk
00:33:30]} {[%emt 00:01:47]} Rc8 {[%clk 00:03:58]} {[%emt 00:16:23]} 28. Bd5+
{[%clk 00:23:23]} {[%emt 00:10:36]} Kh8 {[%clk 00:04:18]} {[%emt 00:00:10]} 29.
Qg4 {[%clk 00:18:05]} {[%emt 00:05:49]} Qe1+ {[%clk 00:03:53]} {[%emt
00:00:54]} 30. Kg2 {[%clk 00:18:24]} {[%emt 00:00:11]} Rf8 {[%clk 00:04:20]}
{[%emt 00:00:03]} 31. f4 {[%clk 00:15:14]} {[%emt 00:03:40]} exf4 {[%clk
00:04:18]} {[%emt 00:00:32]} 32. gxf4 {[%clk 00:15:36]} {[%emt 00:00:08]} Bc1
{[%clk 00:00:50]} {[%emt 00:03:58]} 33. Ne5 {[%clk 00:13:10]} {[%emt 00:02:55]}
Qd2+ {[%clk 00:01:15]} {[%emt 00:00:05]} 34. Kh3 {[%clk 00:11:57]} {[%emt
00:01:44]} Qe3+ {[%clk 00:00:52]} {[%emt 00:00:53]} 35. Kg2 {[%clk 00:11:06]}
{[%emt 00:01:21]} Qd2+ {[%clk 00:01:16]} {[%emt 00:00:06]} 36. Kh3 {[%clk
00:11:33]} {[%emt 00:00:03]} Re8 {[%clk 00:00:36]} {[%emt 00:01:10]} 37. Qf5
{[%clk 00:06:07]} {[%emt 00:05:56]} Qe3+ {[%clk 00:00:50]} {[%emt 00:00:17]} 38.
Kg4 {[%clk 00:04:29]} {[%emt 00:02:07]} Qe2+ {[%clk 00:00:39]} {[%emt
00:00:41]} 39. Bf3 {[%clk 00:04:27]} {[%emt 00:00:32]} Qf1 {[%clk 00:00:36]}
{[%emt 00:00:33]} 40. Ng6+ {[%clk 00:04:36]} {[%emt 00:00:22]} 1-0

[Event "Elitserien 2019/2020, round 1-3"]
[Site "Uppsala University, Gamla torget, Uppsala, Sweden"]
[Date "2019.10.20"]
[Round "3.26"]
[White "Livner, Anders"]
[Black "Jepson, Christian"]
[Result "1/2-1/2"]
[TimeControl "90 minutes for 40 moves + 30 minutes for the rest of the game + 30 seconds per move from move one."]
[WhiteTitle "FM"]
[BlackTitle "IM"]
[WhiteFideId "1704150"]
[BlackFideId "1701185"]
[WhiteElo "2356"]
[BlackElo "2387"]

1. c4 {[%clk 01:30:53]} {[%emt 00:00:06]} e6 {[%clk 01:30:36]} {[%emt
00:00:25]} 2. g3 {[%clk 01:30:52]} {[%emt 00:00:31]} d5 {[%clk 01:31:01]}
{[%emt 00:00:06]} 3. Bg2 {[%clk 01:31:14]} {[%emt 00:00:08]} g6 {[%clk
01:31:26]} {[%emt 00:00:05]} 4. Nf3 {[%clk 01:30:56]} {[%emt 00:00:48]} Bg7
{[%clk 01:31:48]} {[%emt 00:00:08]} 5. O-O {[%clk 01:30:16]} {[%emt 00:01:10]}
Nc6 {[%clk 01:30:09]} {[%emt 00:02:10]} 6. d4 {[%clk 01:29:47]} {[%emt
00:00:58]} Nge7 {[%clk 01:30:19]} {[%emt 00:00:20]} 7. e3 {[%clk 01:28:54]}
{[%emt 00:01:24]} O-O {[%clk 01:29:07]} {[%emt 00:01:42]} 8. Nc3 {[%clk
01:28:21]} {[%emt 00:01:03]} b6 {[%clk 01:22:47]} {[%emt 00:06:50]} 9. Qe2
{[%clk 01:27:48]} {[%emt 00:01:02]} a5 {[%clk 01:18:36]} {[%emt 00:04:42]} 10.
b3 {[%clk 01:23:01]} {[%emt 00:05:17]} Bb7 {[%clk 00:53:48]} {[%emt 00:25:18]}
11. Rd1 {[%clk 01:21:46]} {[%emt 00:01:43]} Nf5 {[%clk 00:42:51]} {[%emt
00:11:28]} 12. Bb2 {[%clk 01:19:42]} {[%emt 00:02:34]} Re8 {[%clk 00:33:11]}
{[%emt 00:10:10]} 13. Rac1 {[%clk 01:15:56]} {[%emt 00:04:16]} Rc8 {[%clk
00:25:14]} {[%emt 00:08:28]} 14. Na4 {[%clk 01:01:48]} {[%emt 00:14:38]} Ba6
{[%clk 00:22:51]} {[%emt 00:02:53]} 15. Qe1 {[%clk 00:56:42]} {[%emt 00:05:35]}
Qd6 {[%clk 00:09:57]} {[%emt 00:13:25]} 16. c5 {[%clk 00:53:13]} {[%emt
00:03:59]} Qd8 {[%clk 00:10:13]} {[%emt 00:00:14]} 17. Bf1 {[%clk 00:48:47]}
{[%emt 00:04:56]} b5 {[%clk 00:07:54]} {[%emt 00:02:49]} 18. Nc3 {[%clk
00:42:30]} {[%emt 00:06:46]} Rb8 {[%clk 00:06:34]} {[%emt 00:01:51]} 19. a4
{[%clk 00:37:08]} {[%emt 00:05:51]} Na7 {[%clk 00:05:11]} {[%emt 00:01:53]} 20.
Na2 {[%clk 00:33:02]} {[%emt 00:04:37]} Nc6 {[%clk 00:04:36]} {[%emt 00:01:06]}
21. Nc3 {[%clk 00:30:44]} {[%emt 00:02:47]} Na7 {[%clk 00:04:31]} {[%emt
00:00:36]} 22. Nb1 {[%clk 00:29:04]} {[%emt 00:02:10]} Nc6 {[%clk 00:04:33]}
{[%emt 00:00:28]} 23. Nc3 {[%clk 00:12:30]} {[%emt 00:17:04]} 1/2-1/2

[Event "Elitserien 2019/2020, round 1-3"]
[Site "Uppsala University, Gamla torget, Uppsala, Sweden"]
[Date "2019.10.20"]
[Round "3.27"]
[White "Brynell, Stellan"]
[Black "Ong, Kezli"]
[Result "1-0"]
[TimeControl "90 minutes for 40 moves + 30 minutes for the rest of the game + 30 seconds per move from move one."]
[WhiteTitle "GM"]
[WhiteFideId "1700219"]
[BlackFideId "1706500"]
[WhiteElo "2408"]
[BlackElo "2314"]

1. d4 {[%clk 01:30:57]} {[%emt 00:00:02]} Nf6 {[%clk 01:25:47]} {[%emt
00:05:14]} 2. Nf3 {[%clk 01:31:09]} {[%emt 00:00:17]} e6 {[%clk 01:25:50]}
{[%emt 00:00:27]} 3. c4 {[%clk 01:31:21]} {[%emt 00:00:19]} Bb4+ {[%clk
01:24:41]} {[%emt 00:01:39]} 4. Bd2 {[%clk 01:31:15]} {[%emt 00:00:35]} Qe7
{[%clk 01:23:37]} {[%emt 00:01:35]} 5. g3 {[%clk 01:31:33]} {[%emt 00:00:12]}
Nc6 {[%clk 01:22:36]} {[%emt 00:01:30]} 6. Nc3 {[%clk 01:31:10]} {[%emt
00:00:53]} Bxc3 {[%clk 01:20:52]} {[%emt 00:02:15]} 7. Bxc3 {[%clk 01:31:34]}
{[%emt 00:00:05]} Ne4 {[%clk 01:21:16]} {[%emt 00:00:07]} 8. Rc1 {[%clk
01:31:55]} {[%emt 00:00:08]} d6 {[%clk 01:20:00]} {[%emt 00:01:46]} 9. d5
{[%clk 01:27:36]} {[%emt 00:04:48]} Nxc3 {[%clk 01:19:22]} {[%emt 00:01:09]} 10.
Rxc3 {[%clk 01:27:58]} {[%emt 00:00:08]} Nb8 {[%clk 01:19:00]} {[%emt
00:00:52]} 11. dxe6 {[%clk 01:27:42]} {[%emt 00:00:47]} fxe6 {[%clk 01:17:59]}
{[%emt 00:01:31]} 12. Bg2 {[%clk 01:23:27]} {[%emt 00:04:45]} a5 {[%clk
01:08:20]} {[%emt 00:10:09]} 13. O-O {[%clk 01:18:33]} {[%emt 00:05:23]} O-O
{[%clk 00:59:04]} {[%emt 00:09:46]} 14. Nd4 {[%clk 01:12:54]} {[%emt 00:06:09]}
Na6 {[%clk 00:26:19]} {[%emt 00:33:15]} 15. Qd2 {[%clk 01:04:04]} {[%emt
00:09:20]} Nc5 {[%clk 00:21:53]} {[%emt 00:04:56]} 16. Ra3 {[%clk 00:53:47]}
{[%emt 00:10:47]} e5 {[%clk 00:09:57]} {[%emt 00:12:27]} 17. Nb3 {[%clk
00:50:00]} {[%emt 00:04:17]} Nxb3 {[%clk 00:06:45]} {[%emt 00:03:42]} 18. axb3
{[%clk 00:50:18]} {[%emt 00:00:10]} c6 {[%clk 00:03:52]} {[%emt 00:03:23]} 19.
Rxa5 {[%clk 00:41:58]} {[%emt 00:08:51]} Rxa5 {[%clk 00:04:15]} {[%emt
00:00:08]} 20. Qxa5 {[%clk 00:42:22]} {[%emt 00:00:05]} Bg4 {[%clk 00:04:07]}
{[%emt 00:00:39]} 21. Qd2 {[%clk 00:41:24]} {[%emt 00:01:28]} Qf6 {[%clk
00:02:40]} {[%emt 00:01:57]} 22. b4 {[%clk 00:40:00]} {[%emt 00:01:54]} h6
{[%clk 00:01:06]} {[%emt 00:02:05]} 23. b5 {[%clk 00:35:13]} {[%emt 00:05:16]}
Bd7 {[%clk 00:00:35]} {[%emt 00:01:02]} 24. bxc6 {[%clk 00:35:04]} {[%emt
00:00:39]} Bxc6 {[%clk 00:00:33]} {[%emt 00:00:32]} 25. Bd5+ {[%clk 00:25:44]}
{[%emt 00:09:50]} Kh8 {[%clk 00:00:53]} {[%emt 00:00:10]} 26. b3 {[%clk
00:25:00]} {[%emt 00:01:14]} Qd8 {[%clk 00:00:50]} {[%emt 00:00:33]} 27. Bxc6
{[%clk 00:22:46]} {[%emt 00:02:44]} bxc6 {[%clk 00:01:17]} {[%emt 00:00:03]} 28.
Qe3 {[%clk 00:23:06]} {[%emt 00:00:10]} Re8 {[%clk 00:00:32]} {[%emt 00:01:16]}
29. Rd1 {[%clk 00:23:16]} {[%emt 00:00:19]} d5 {[%clk 00:00:31]} {[%emt
00:00:32]} 30. cxd5 {[%clk 00:23:01]} {[%emt 00:00:44]} cxd5 {[%clk 00:00:57]}
{[%emt 00:00:04]} 31. Qd3 {[%clk 00:22:07]} {[%emt 00:01:24]} d4 {[%clk
00:01:13]} {[%emt 00:00:14]} 32. Qe4 {[%clk 00:21:50]} {[%emt 00:00:46]} Qa5
{[%clk 00:00:37]} {[%emt 00:01:06]} 33. Kg2 {[%clk 00:21:30]} {[%emt 00:00:50]}
Rb8 {[%clk 00:00:49]} {[%emt 00:00:18]} 34. Rd3 {[%clk 00:21:32]} {[%emt
00:00:29]} Rf8 {[%clk 00:00:33]} {[%emt 00:00:47]} 35. Rf3 {[%clk 00:18:57]}
{[%emt 00:03:04]} Rxf3 {[%clk 00:00:44]} {[%emt 00:00:19]} 36. Qxf3 {[%clk
00:19:14]} {[%emt 00:00:13]} Qc5 {[%clk 00:00:32]} {[%emt 00:00:43]} 37. Qb7
{[%clk 00:18:35]} {[%emt 00:01:09]} Kh7 {[%clk 00:00:32]} {[%emt 00:00:30]} 38.
Qe4+ {[%clk 00:14:34]} {[%emt 00:04:30]} Kh8 {[%clk 00:00:55]} {[%emt
00:00:06]} 39. h4 {[%clk 00:14:00]} {[%emt 00:01:04]} Qb5 {[%clk 00:00:53]}
{[%emt 00:00:32]} 40. Qd3 {[%clk 00:13:36]} {[%emt 00:00:53]} Qd5+ {[%clk
00:00:51]} {[%emt 00:00:32]} 41. f3 {[%clk 00:13:56]} {[%emt 00:00:10]} Qb7
{[%clk 00:26:00]} {[%emt 00:05:21]} 42. Qc2 {[%clk 00:40:09]} {[%emt 00:04:17]}
Qa8 {[%clk 00:07:30]} {[%emt 00:19:02]} 43. b4 {[%clk 00:39:41]} {[%emt
00:00:58]} Qa6 {[%clk 00:06:08]} {[%emt 00:01:51]} 44. Qd3 {[%clk 00:38:50]}
{[%emt 00:01:21]} Qe6 {[%clk 00:05:04]} {[%emt 00:01:35]} 45. b5 {[%clk
00:37:16]} {[%emt 00:02:04]} g6 {[%clk 00:03:00]} {[%emt 00:02:34]} 46. Qe4
{[%clk 00:36:28]} {[%emt 00:01:17]} Qd6 {[%clk 00:02:25]} {[%emt 00:01:05]} 47.
Qc6 {[%clk 00:36:11]} 1-0